[Event "*** Titled Tuesday 3|2 Blitz"]
[Site "Chess.com"]
[Date "2017.03.07"]
[Round "4"]
[White "HouseOfDurin"]
[Black "Makalexa"]
[Result "0-1"]
[WhiteElo "1867"]
[BlackElo "2121"]
[TimeControl "180+2"]
[EndTime "13:54:50 PST"]
[Termination "Makalexa won on time"]

1. d4 {[%clk 0:03:02]} 1... Nf6 {[%clk 0:02:58.2]} 2. Bg5 {[%clk 0:03:03.1]}
2... Ne4 {[%clk 0:02:57.2]} 3. h4 {[%clk 0:03:04.1]} 3... h6 {[%clk 0:02:48.5]}
4. Bf4 {[%clk 0:03:04.5]} 4... d5 {[%clk 0:02:47.8]} 5. f3 {[%clk 0:03:03.7]}
5... Nf6 {[%clk 0:02:45.8]} 6. Nd2 {[%clk 0:03:01.6]} 6... c5 {[%clk 0:02:46.4]}
7. dxc5 {[%clk 0:02:45.1]} 7... Nc6 {[%clk 0:02:46.5]} 8. Nb3 {[%clk 0:02:05.2]}
8... e5 {[%clk 0:02:46.4]} 9. Bg3 {[%clk 0:02:01.3]} 9... Bf5 {[%clk 0:02:39.4]}
10. c3 {[%clk 0:01:53.9]} 10... a5 {[%clk 0:02:39.1]} 11. a4 {[%clk 0:01:51.5]}
11... Be7 {[%clk 0:02:38.4]} 12. e3 {[%clk 0:01:44.8]} 12... O-O {[%clk
0:02:38.6]} 13. Bb5 {[%clk 0:01:43.2]} 13... Nh5 {[%clk 0:02:26.9]} 14. Bf2
{[%clk 0:01:34.6]} 14... Be6 {[%clk 0:02:20.4]} 15. g4 {[%clk 0:01:09.8]} 15...
Nf6 {[%clk 0:02:20.4]} 16. g5 {[%clk 0:01:05.5]} 16... hxg5 {[%clk 0:02:21.3]}
17. hxg5 {[%clk 0:01:07.4]} 17... Nh7 {[%clk 0:02:22.4]} 18. f4 {[%clk
0:01:07.8]} 18... exf4 {[%clk 0:02:19.9]} 19. exf4 {[%clk 0:01:09.4]} 19... Bf5
{[%clk 0:02:11.8]} 20. Bd3 {[%clk 0:01:01]} 20... Qd7 {[%clk 0:02:08.1]} 21. Qc2
{[%clk 0:00:47.9]} 21... Qe6+ {[%clk 0:02:05]} 22. Ne2 {[%clk 0:00:47.7]} 22...
Be4 {[%clk 0:01:53.7]} 23. Rxh7 {[%clk 0:00:33.7]} 23... Kxh7 {[%clk 0:01:53.3]}
24. O-O-O {[%clk 0:00:34.5]} 24... Kg8 {[%clk 0:01:44.2]} 25. Ned4 {[%clk
0:00:21.5]} 25... Qg6 {[%clk 0:01:40.7]} 26. f5 {[%clk 0:00:20.4]} 26... Qxg5+
{[%clk 0:01:34.9]} 27. Kb1 {[%clk 0:00:21.4]} 27... Bf6 {[%clk 0:01:18.3]} 28.
Rg1 {[%clk 0:00:20.8]} 28... Qf4 {[%clk 0:01:11.1]} 29. Bg3 {[%clk 0:00:13.5]}
29... Bxd3 {[%clk 0:01:11.9]} 30. Qxd3 {[%clk 0:00:09.1]} 30... Qe4 {[%clk
0:01:12.8]} 31. Kc2 {[%clk 0:00:06.9]} 31... Bxd4 {[%clk 0:01:04.8]} 32. Nxd4
{[%clk 0:00:06.3]} 32... Qxd4 {[%clk 0:00:59.7]} 33. cxd4 {[%clk 0:00:08.2]}
33... Nb4+ {[%clk 0:00:59.2]} 34. Kd2 {[%clk 0:00:08.6]} 34... Nxd3 {[%clk
0:01:00.1]} 35. Kxd3 {[%clk 0:00:10.3]} 35... f6 {[%clk 0:01:01.3]} 36. Bd6
{[%clk 0:00:09.8]} 36... Rfe8 {[%clk 0:01:01.9]} 37. Rb1 {[%clk 0:00:07.6]}
37... Re4 {[%clk 0:00:49.6]} 38. Rg1 {[%clk 0:00:05.1]} 38... Kf7 {[%clk
0:00:48.8]} 39. Rg3 {[%clk 0:00:03.3]} 39... Rg8 {[%clk 0:00:45.4]} 0-1

[Event "*** Titled Tuesday 3|2 Blitz"]
[Site "Chess.com"]
[Date "2017.03.07"]
[Round "4"]
[White "A-Fier"]
[Black "Alex_Molchanov"]
[Result "1-0"]
[WhiteElo "2528"]
[BlackElo "2469"]
[TimeControl "180+2"]
[EndTime "13:54:55 PST"]
[Termination "A-Fier won by resignation"]

1. d4 {[%clk 0:03:02]} 1... Nf6 {[%clk 0:03:00.5]} 2. c4 {[%clk 0:03:03.2]} 2...
e6 {[%clk 0:03:01.9]} 3. Nc3 {[%clk 0:03:04.3]} 3... Bb4 {[%clk 0:03:02.6]} 4.
e3 {[%clk 0:03:05.7]} 4... O-O {[%clk 0:03:03.5]} 5. Ne2 {[%clk 0:03:06.4]} 5...
c6 {[%clk 0:03:04.9]} 6. a3 {[%clk 0:03:06.6]} 6... Ba5 {[%clk 0:03:06.5]} 7.
Qc2 {[%clk 0:03:08.1]} 7... d5 {[%clk 0:03:06.9]} 8. Ng3 {[%clk 0:03:08.3]} 8...
Bc7 {[%clk 0:03:07.3]} 9. Be2 {[%clk 0:03:09]} 9... Nbd7 {[%clk 0:03:03.4]} 10.
O-O {[%clk 0:03:09.7]} 10... b6 {[%clk 0:02:59.8]} 11. Rd1 {[%clk 0:03:09.9]}
11... Ba6 {[%clk 0:02:57.9]} 12. b3 {[%clk 0:03:03.6]} 12... Qb8 {[%clk
0:02:52.5]} 13. Bb2 {[%clk 0:03:03.2]} 13... Rc8 {[%clk 0:02:51]} 14. e4 {[%clk
0:02:59.4]} 14... c5 {[%clk 0:02:23.3]} 15. e5 {[%clk 0:02:48.9]} 15... cxd4
{[%clk 0:02:12.7]} 16. exf6 {[%clk 0:02:49.6]} 16... dxc3 {[%clk 0:02:13.5]} 17.
Bxc3 {[%clk 0:02:51.5]} 17... Nxf6 {[%clk 0:02:04.4]} 18. Qb2 {[%clk 0:02:28.2]}
18... Bxg3 {[%clk 0:00:48.3]} 19. hxg3 {[%clk 0:02:27.6]} 19... Ne8 {[%clk
0:00:49.5]} 20. Be5 {[%clk 0:02:21.6]} 20... Qb7 {[%clk 0:00:47]} 21. Bf3 {[%clk
0:02:22.3]} 21... Qe7 {[%clk 0:00:43.5]} 22. cxd5 {[%clk 0:02:21.1]} 22... exd5
{[%clk 0:00:43.1]} 23. Bxd5 {[%clk 0:02:22.1]} 23... Bb7 {[%clk 0:00:42.4]} 24.
Bc4 {[%clk 0:02:20.2]} 24... Rd8 {[%clk 0:00:22.3]} 25. Re1 {[%clk 0:02:21.1]}
25... Qc5 {[%clk 0:00:21.4]} 26. Rad1 {[%clk 0:02:10]} 26... Qc6 {[%clk
0:00:22]} 27. f3 {[%clk 0:02:11.1]} 27... Qg6 {[%clk 0:00:22]} 28. Rd4 {[%clk
0:01:59.1]} 28... h5 {[%clk 0:00:16.9]} 29. Red1 {[%clk 0:01:45.5]} 29... Rxd4
{[%clk 0:00:17.3]} 30. Rxd4 {[%clk 0:01:47.4]} 30... Rc8 {[%clk 0:00:17.9]} 31.
Rd7 {[%clk 0:01:45.1]} 31... Rxc4 {[%clk 0:00:14.3]} 32. bxc4 {[%clk 0:01:43.8]}
32... Bc6 {[%clk 0:00:13.4]} 33. Rxa7 {[%clk 0:01:44.7]} 33... Qd3 {[%clk
0:00:13.7]} 34. Qxb6 {[%clk 0:01:38]} 34... Bxf3 {[%clk 0:00:12.4]} 35. gxf3
{[%clk 0:01:37.1]} 35... Qd1+ {[%clk 0:00:13.4]} 36. Kg2 {[%clk 0:01:37.3]}
36... Qe2+ {[%clk 0:00:15]} 37. Qf2 {[%clk 0:01:36]} 37... Qxe5 {[%clk
0:00:16.6]} 38. Qc2 {[%clk 0:01:34.4]} 38... g6 {[%clk 0:00:15.1]} 39. c5 {[%clk
0:01:34.5]} 39... Nf6 {[%clk 0:00:15.7]} 40. Ra4 {[%clk 0:01:23.5]} 40... Nd5
{[%clk 0:00:15.9]} 41. Re4 {[%clk 0:01:25.1]} 41... Ne3+ {[%clk 0:00:16.6]} 42.
Kf2 {[%clk 0:01:17.8]} 42... Qf5 {[%clk 0:00:06.7]} 43. Kxe3 {[%clk 0:01:17.1]}
43... h4 {[%clk 0:00:07.6]} 44. gxh4 {[%clk 0:01:17]} 44... Kh7 {[%clk
0:00:06.7]} 45. c6 {[%clk 0:01:16.6]} 45... Qh3 {[%clk 0:00:07.7]} 46. c7 {[%clk
0:01:17.4]} 46... Qf1 {[%clk 0:00:08.7]} 47. c8=Q {[%clk 0:01:15.2]} 47... Qe1+
{[%clk 0:00:09.6]} 48. Qe2 {[%clk 0:01:15]} 48... Qc1+ {[%clk 0:00:10.2]} 49.
Qxc1 {[%clk 0:01:15.4]} 1-0

[Event "*** Titled Tuesday 3|2 Blitz"]
[Site "Chess.com"]
[Date "2017.03.07"]
[Round "4"]
[White "Beca95"]
[Black "rpragchess"]
[Result "1-0"]
[WhiteElo "2683"]
[BlackElo "1563"]
[TimeControl "180+2"]
[EndTime "13:55:00 PST"]
[Termination "Beca95 won by checkmate"]

1. d4 {[%clk 0:03:02]} 1... Nf6 {[%clk 0:02:57.8]} 2. c4 {[%clk 0:03:03.5]} 2...
e6 {[%clk 0:02:57.4]} 3. Nc3 {[%clk 0:03:05.1]} 3... d5 {[%clk 0:02:57.1]} 4.
Nf3 {[%clk 0:03:06.3]} 4... Be7 {[%clk 0:02:54.5]} 5. Bg5 {[%clk 0:03:06.7]}
5... O-O {[%clk 0:02:53.4]} 6. e3 {[%clk 0:03:08]} 6... h6 {[%clk 0:02:53.8]} 7.
Bxf6 {[%clk 0:03:09.3]} 7... Bxf6 {[%clk 0:02:54]} 8. Rc1 {[%clk 0:03:09.9]}
8... b6 {[%clk 0:02:51.4]} 9. h4 {[%clk 0:03:10.6]} 9... Bb7 {[%clk 0:02:51]}
10. g4 {[%clk 0:03:11.8]} 10... dxc4 {[%clk 0:02:43.6]} 11. g5 {[%clk
0:02:53.6]} 11... hxg5 {[%clk 0:02:41.7]} 12. hxg5 {[%clk 0:02:54.9]} 12... Bxg5
{[%clk 0:02:42.1]} 13. Rh5 {[%clk 0:02:43.9]} 13... Bh6 {[%clk 0:02:37]} 14. Ne5
{[%clk 0:02:44.6]} 14... f5 {[%clk 0:02:09.3]} 15. Bxc4 {[%clk 0:02:42.1]} 15...
Qe8 {[%clk 0:02:07.5]} 16. d5 {[%clk 0:01:45]} 16... Kh7 {[%clk 0:01:44]} 17.
dxe6 {[%clk 0:01:43.8]} 17... Nc6 {[%clk 0:01:41.4]} 18. Nf7 {[%clk 0:01:41.9]}
18... Rxf7 {[%clk 0:01:30.4]} 19. exf7 {[%clk 0:01:41.7]} 19... Qe5 {[%clk
0:01:29.4]} 20. Qd5 {[%clk 0:01:40.5]} 20... g6 {[%clk 0:01:24.2]} 21. Rh3
{[%clk 0:01:32.2]} 21... Kg7 {[%clk 0:01:19.9]} 22. Qd7 {[%clk 0:01:26.8]} 22...
Rf8 {[%clk 0:01:17.5]} 23. Bd5 {[%clk 0:01:00.5]} 23... Nb8 {[%clk 0:00:52.7]}
24. Qe6 {[%clk 0:01:01.3]} 24... Qxe6 {[%clk 0:00:41.3]} 25. Bxe6 {[%clk
0:01:03.2]} 25... Nc6 {[%clk 0:00:42.7]} 26. Nd5 {[%clk 0:01:04]} 26... Ne5
{[%clk 0:00:42.8]} 27. Rxc7 {[%clk 0:00:59.5]} 27... Ba6 {[%clk 0:00:41.6]} 28.
Rxa7 {[%clk 0:00:56.7]} 28... Bc4 {[%clk 0:00:38.9]} 29. Nc7 {[%clk 0:00:57.6]}
29... Nd3+ {[%clk 0:00:36.4]} 30. Kd2 {[%clk 0:00:57.2]} 30... Nxf2 {[%clk
0:00:29.8]} 31. Ne8+ {[%clk 0:00:57.5]} 31... Kh7 {[%clk 0:00:26.2]} 32. Rxh6+
{[%clk 0:00:55.5]} 32... Kxh6 {[%clk 0:00:26.4]} 33. Bxc4 {[%clk 0:00:56.6]}
33... Ne4+ {[%clk 0:00:25.1]} 34. Ke2 {[%clk 0:00:57.1]} 34... Ng5 {[%clk
0:00:05.7]} 35. Nd6 {[%clk 0:00:55.4]} 35... Kg7 {[%clk 0:00:05.2]} 36. Re7
{[%clk 0:00:56]} 36... Kf6 {[%clk 0:00:05.6]} 37. Re8 {[%clk 0:00:57.1]} 37...
Kg7 {[%clk 0:00:05.5]} 38. a4 {[%clk 0:00:58.3]} 38... Ne4 {[%clk 0:00:05.4]}
39. Nxe4 {[%clk 0:00:58.4]} 39... fxe4 {[%clk 0:00:07]} 40. Rxe4 {[%clk
0:00:59.3]} 40... Rc8 {[%clk 0:00:07.4]} 41. Re8 {[%clk 0:00:59.4]} 41... Rxc4
{[%clk 0:00:09]} 42. f8=Q+ {[%clk 0:01:00.4]} 42... Kh7 {[%clk 0:00:10.3]} 43.
Qh8# {[%clk 0:01:01.6]} 1-0

[Event "*** Titled Tuesday 3|2 Blitz"]
[Site "Chess.com"]
[Date "2017.03.07"]
[Round "4"]
[White "FearlessKing64"]
[Black "escher"]
[Result "0-1"]
[WhiteElo "2110"]
[BlackElo "2132"]
[TimeControl "180+2"]
[EndTime "13:55:04 PST"]
[Termination "escher won by resignation"]

1. e4 {[%clk 0:03:02]} 1... c5 {[%clk 0:02:59.1]} 2. Nf3 {[%clk 0:02:58.3]} 2...
Nc6 {[%clk 0:02:59.6]} 3. d4 {[%clk 0:02:59.2]} 3... cxd4 {[%clk 0:03:01.5]} 4.
Nxd4 {[%clk 0:03:00.7]} 4... Nf6 {[%clk 0:03:02.7]} 5. Nc3 {[%clk 0:03:01.8]}
5... e5 {[%clk 0:03:03.9]} 6. Ndb5 {[%clk 0:03:02.9]} 6... d6 {[%clk 0:03:05.3]}
7. Bg5 {[%clk 0:03:03.2]} 7... a6 {[%clk 0:03:06.6]} 8. Na3 {[%clk 0:03:04.6]}
8... b5 {[%clk 0:03:08]} 9. Bxf6 {[%clk 0:03:06.1]} 9... gxf6 {[%clk 0:03:08.4]}
10. Nd5 {[%clk 0:03:07.7]} 10... f5 {[%clk 0:03:08.8]} 11. c3 {[%clk 0:03:08.7]}
11... Bg7 {[%clk 0:03:05.3]} 12. exf5 {[%clk 0:03:09.1]} 12... Bxf5 {[%clk
0:03:02]} 13. Nc2 {[%clk 0:03:10.5]} 13... Bxc2 {[%clk 0:02:25.2]} 14. Qxc2
{[%clk 0:03:10]} 14... Ne7 {[%clk 0:02:25.9]} 15. Nxe7 {[%clk 0:02:55.9]} 15...
Qxe7 {[%clk 0:02:21]} 16. a4 {[%clk 0:02:57.3]} 16... O-O {[%clk 0:01:31.3]} 17.
Qe4 {[%clk 0:02:27.5]} 17... Qe6 {[%clk 0:01:05.7]} 18. axb5 {[%clk 0:01:50.2]}
18... d5 {[%clk 0:01:00.8]} 19. Qa4 {[%clk 0:01:50]} 19... e4 {[%clk 0:00:33.7]}
20. bxa6 {[%clk 0:01:43.2]} 20... e3 {[%clk 0:00:30.2]} 21. f3 {[%clk
0:01:32.7]} 21... Rfb8 {[%clk 0:00:24.3]} 22. Qc2 {[%clk 0:01:12.5]} 22... Qc6
{[%clk 0:00:18.8]} 23. Bd3 {[%clk 0:01:06.9]} 23... Rxb2 {[%clk 0:00:18.7]} 24.
Bxh7+ {[%clk 0:00:13]} 24... Kh8 {[%clk 0:00:19.5]} 25. Qf5 {[%clk 0:00:12.2]}
25... Qxc3+ {[%clk 0:00:18.6]} 26. Kf1 {[%clk 0:00:13.1]} 26... Rf2+ {[%clk
0:00:16.7]} 27. Kg1 {[%clk 0:00:13.4]} 27... Qxa1+ {[%clk 0:00:15.2]} 28. Qb1
{[%clk 0:00:11.3]} 28... Qxb1+ {[%clk 0:00:15.8]} 29. Bxb1 {[%clk 0:00:13.2]}
29... Rxa6 {[%clk 0:00:15.8]} 30. h4 {[%clk 0:00:13.4]} 30... Ra1 {[%clk
0:00:15.7]} 31. Kh2 {[%clk 0:00:15]} 31... Be5+ {[%clk 0:00:16.1]} 32. Kh3
{[%clk 0:00:15.9]} 32... e2 {[%clk 0:00:17.4]} 33. Kg4 {[%clk 0:00:10.8]} 33...
Rf1 {[%clk 0:00:17.9]} 34. Rh3 {[%clk 0:00:11.1]} 34... e1=Q {[%clk 0:00:18.9]}
35. Bf5 {[%clk 0:00:11.3]} 35... Rg1 {[%clk 0:00:19]} 36. g3 {[%clk 0:00:12.1]}
36... Rxg3+ {[%clk 0:00:19.7]} 37. Kh5 {[%clk 0:00:11.8]} 37... Rxh3 {[%clk
0:00:20.8]} 38. Bxh3 {[%clk 0:00:11.7]} 38... Qg3 {[%clk 0:00:22.3]} 39. Bg4
{[%clk 0:00:12.3]} 39... Kh7 {[%clk 0:00:21.9]} 40. Kg5 {[%clk 0:00:13.7]} 40...
Qf4+ {[%clk 0:00:22.1]} 0-1

[Event "*** Titled Tuesday 3|2 Blitz"]
[Site "Chess.com"]
[Date "2017.03.07"]
[Round "4"]
[White "B-man"]
[Black "jk13"]
[Result "0-1"]
[WhiteElo "2501"]
[BlackElo "2516"]
[TimeControl "180+2"]
[EndTime "13:55:11 PST"]
[Termination "jk13 won by resignation"]

1. e4 {[%clk 0:03:02]} 1... e5 {[%clk 0:03:00.2]} 2. Nf3 {[%clk 0:03:02.6]} 2...
Nc6 {[%clk 0:03:01.6]} 3. Bb5 {[%clk 0:03:03.4]} 3... Nf6 {[%clk 0:03:02.7]} 4.
d3 {[%clk 0:03:03.3]} 4... Bc5 {[%clk 0:03:03.3]} 5. a3 {[%clk 0:03:02.1]} 5...
Nd4 {[%clk 0:02:55]} 6. Nxd4 {[%clk 0:02:59.6]} 6... Bxd4 {[%clk 0:02:56.7]} 7.
c3 {[%clk 0:02:57.5]} 7... Bb6 {[%clk 0:02:56.8]} 8. O-O {[%clk 0:02:58.6]} 8...
O-O {[%clk 0:02:56.9]} 9. Bg5 {[%clk 0:02:56.7]} 9... h6 {[%clk 0:02:57.5]} 10.
Bh4 {[%clk 0:02:57.3]} 10... d6 {[%clk 0:02:42.6]} 11. Kh1 {[%clk 0:02:53.8]}
11... g5 {[%clk 0:02:41.3]} 12. Bg3 {[%clk 0:02:54.2]} 12... Bg4 {[%clk
0:02:35.6]} 13. f3 {[%clk 0:02:39]} 13... Be6 {[%clk 0:02:36.7]} 14. d4 {[%clk
0:02:33.2]} 14... Nh5 {[%clk 0:02:35.3]} 15. Bf2 {[%clk 0:02:31.3]} 15... Qf6
{[%clk 0:02:24.2]} 16. a4 {[%clk 0:02:27.7]} 16... c6 {[%clk 0:02:19.1]} 17. a5
{[%clk 0:02:07.6]} 17... Bc7 {[%clk 0:02:12.5]} 18. Ba4 {[%clk 0:02:05.9]} 18...
Qg6 {[%clk 0:02:06.5]} 19. a6 {[%clk 0:02:03.4]} 19... b5 {[%clk 0:02:06.2]} 20.
Bc2 {[%clk 0:01:48.2]} 20... g4 {[%clk 0:01:53.3]} 21. d5 {[%clk 0:01:36.5]}
21... Bd7 {[%clk 0:01:22.9]} 22. dxc6 {[%clk 0:01:20.8]} 22... Bxc6 {[%clk
0:01:24.8]} 23. fxg4 {[%clk 0:01:21.8]} 23... Nf6 {[%clk 0:01:26]} 24. Nd2
{[%clk 0:01:16.4]} 24... Nxg4 {[%clk 0:01:26.4]} 25. Bg1 {[%clk 0:01:17.2]}
25... f5 {[%clk 0:00:38.6]} 26. Qe2 {[%clk 0:01:17.6]} 26... f4 {[%clk
0:00:34.9]} 27. Nf3 {[%clk 0:01:12.9]} 27... Qh5 {[%clk 0:00:33]} 28. Rad1
{[%clk 0:01:01.2]} 28... Kh8 {[%clk 0:00:33]} 29. Bb3 {[%clk 0:01:01]} 29... Rf6
{[%clk 0:00:31.9]} 30. Bd5 {[%clk 0:00:55.7]} 30... Bxd5 {[%clk 0:00:32.3]} 31.
Rxd5 {[%clk 0:00:57.6]} 31... Rg8 {[%clk 0:00:32.4]} 32. Bxa7 {[%clk 0:00:56.1]}
32... Nxh2 {[%clk 0:00:32.1]} 33. Kg1 {[%clk 0:00:52.7]} 33... Ng4 {[%clk
0:00:29.3]} 34. Ra1 {[%clk 0:00:48]} 34... Rfg6 {[%clk 0:00:29.4]} 35. Rd2
{[%clk 0:00:44.5]} 35... Nf6 {[%clk 0:00:24.6]} 36. Kf1 {[%clk 0:00:39.1]} 36...
Qh1+ {[%clk 0:00:22.9]} 37. Bg1 {[%clk 0:00:34.2]} 37... Nh5 {[%clk 0:00:23.1]}
38. Ke1 {[%clk 0:00:23.8]} 38... Rxg2 {[%clk 0:00:21.6]} 39. Qf1 {[%clk
0:00:16.4]} 39... Rxg1 {[%clk 0:00:20.8]} 40. Qxg1 {[%clk 0:00:11.3]} 40...
Rxg1+ {[%clk 0:00:22.7]} 41. Nxg1 {[%clk 0:00:12.8]} 41... Qxg1+ {[%clk
0:00:24.2]} 42. Ke2 {[%clk 0:00:14.7]} 42... Qxa1 {[%clk 0:00:25.5]} 0-1

[Event "*** Titled Tuesday 3|2 Blitz"]
[Site "Chess.com"]
[Date "2017.03.07"]
[Round "4"]
[White "AnthonyWirig"]
[Black "jcibarra"]
[Result "0-1"]
[WhiteElo "2561"]
[BlackElo "2678"]
[TimeControl "180+2"]
[EndTime "13:55:15 PST"]
[Termination "jcibarra won by resignation"]

1. d4 {[%clk 0:03:02]} 1... Nf6 {[%clk 0:03:00.6]} 2. Nf3 {[%clk 0:03:03.1]}
2... g6 {[%clk 0:03:01.6]} 3. g3 {[%clk 0:03:00.4]} 3... d6 {[%clk 0:03:02.2]}
4. Bg2 {[%clk 0:03:00.9]} 4... Bg7 {[%clk 0:03:03.8]} 5. O-O {[%clk 0:03:02.6]}
5... O-O {[%clk 0:03:05.4]} 6. Nc3 {[%clk 0:03:02.2]} 6... d5 {[%clk 0:03:01]}
7. b3 {[%clk 0:02:49]} 7... c5 {[%clk 0:02:54.4]} 8. e3 {[%clk 0:02:46.7]} 8...
Nc6 {[%clk 0:02:54.4]} 9. Bb2 {[%clk 0:02:47.6]} 9... cxd4 {[%clk 0:02:53.2]}
10. Nxd4 {[%clk 0:02:45]} 10... Bg4 {[%clk 0:02:45.9]} 11. Qd2 {[%clk
0:02:37.1]} 11... Nxd4 {[%clk 0:02:34.2]} 12. exd4 {[%clk 0:02:39]} 12... Rc8
{[%clk 0:02:31.5]} 13. h3 {[%clk 0:02:36.4]} 13... Bf5 {[%clk 0:02:32]} 14. g4
{[%clk 0:02:37.1]} 14... Be6 {[%clk 0:02:27.9]} 15. Ne2 {[%clk 0:02:14.7]} 15...
Qc7 {[%clk 0:02:23.5]} 16. c3 {[%clk 0:02:10.9]} 16... h5 {[%clk 0:02:19.7]} 17.
f3 {[%clk 0:02:09.1]} 17... hxg4 {[%clk 0:02:17.2]} 18. hxg4 {[%clk 0:02:07.9]}
18... Bd7 {[%clk 0:01:59.7]} 19. Rfe1 {[%clk 0:01:48.1]} 19... Rfe8 {[%clk
0:01:52.9]} 20. Rad1 {[%clk 0:01:46]} 20... b5 {[%clk 0:01:42.7]} 21. Nc1 {[%clk
0:01:24.5]} 21... Qg3 {[%clk 0:01:29.1]} 22. Qf2 {[%clk 0:01:19.1]} 22... Qd6
{[%clk 0:01:18.2]} 23. Nd3 {[%clk 0:01:18.6]} 23... Rc7 {[%clk 0:01:14]} 24. Ne5
{[%clk 0:01:09.8]} 24... Bc8 {[%clk 0:01:11.7]} 25. Re2 {[%clk 0:01:09.1]} 25...
Nd7 {[%clk 0:01:09.9]} 26. Rde1 {[%clk 0:01:00.2]} 26... Nxe5 {[%clk 0:01:08]}
27. dxe5 {[%clk 0:01:02.1]} 27... Qc5 {[%clk 0:01:07.9]} 28. Qxc5 {[%clk
0:00:54]} 28... Rxc5 {[%clk 0:01:09.8]} 29. g5 {[%clk 0:00:48.5]} 29... Bf5
{[%clk 0:01:08.5]} 30. f4 {[%clk 0:00:46.9]} 30... Rec8 {[%clk 0:01:08.1]} 31.
Rd2 {[%clk 0:00:47.2]} 31... e6 {[%clk 0:01:08.8]} 32. Bf1 {[%clk 0:00:43.5]}
32... a6 {[%clk 0:01:06.9]} 33. Ra1 {[%clk 0:00:43.5]} 33... Rxc3 {[%clk
0:00:56]} 34. Bxc3 {[%clk 0:00:42.8]} 34... Rxc3 {[%clk 0:00:57.9]} 35. Rad1
{[%clk 0:00:30.1]} 35... Bf8 {[%clk 0:00:57.6]} 36. Bd3 {[%clk 0:00:30.9]} 36...
Bc5+ {[%clk 0:00:58.8]} 37. Kg2 {[%clk 0:00:24.4]} 37... Be3 {[%clk 0:01:00]}
38. Bxf5 {[%clk 0:00:25.6]} 38... Bxd2 {[%clk 0:00:57.5]} 39. Bxe6 {[%clk
0:00:26.1]} 39... Bxf4 {[%clk 0:00:36.8]} 40. Bxf7+ {[%clk 0:00:12.3]} 40...
Kxf7 {[%clk 0:00:32.2]} 41. Rf1 {[%clk 0:00:13.6]} 41... Rg3+ {[%clk 0:00:31.6]}
0-1

[Event "*** Titled Tuesday 3|2 Blitz"]
[Site "Chess.com"]
[Date "2017.03.07"]
[Round "4"]
[White "rasmussvane"]
[Black "Izoria123"]
[Result "1-0"]
[WhiteElo "2511"]
[BlackElo "2550"]
[TimeControl "180+2"]
[EndTime "13:55:15 PST"]
[Termination "rasmussvane won by resignation"]

1. Nf3 {[%clk 0:03:02]} 1... g6 {[%clk 0:02:58.3]} 2. c4 {[%clk 0:02:59.9]} 2...
Bg7 {[%clk 0:02:59.4]} 3. d4 {[%clk 0:03:01]} 3... Nf6 {[%clk 0:02:57.9]} 4. Nc3
{[%clk 0:03:00]} 4... d5 {[%clk 0:02:58.9]} 5. cxd5 {[%clk 0:02:58.3]} 5... Nxd5
{[%clk 0:03:00.8]} 6. e4 {[%clk 0:02:59.4]} 6... Nxc3 {[%clk 0:03:02]} 7. bxc3
{[%clk 0:03:00.9]} 7... c5 {[%clk 0:03:03.7]} 8. h3 {[%clk 0:03:01.2]} 8... O-O
{[%clk 0:02:55]} 9. Be2 {[%clk 0:03:02.3]} 9... b6 {[%clk 0:02:35.6]} 10. O-O
{[%clk 0:03:02.3]} 10... Bb7 {[%clk 0:02:36.4]} 11. d5 {[%clk 0:03:03.5]} 11...
Bxc3 {[%clk 0:02:36.1]} 12. Bh6 {[%clk 0:03:04.4]} 12... Bg7 {[%clk 0:02:24.2]}
13. Bxg7 {[%clk 0:03:05.5]} 13... Kxg7 {[%clk 0:02:26.1]} 14. Qb3 {[%clk
0:03:06.3]} 14... Qd6 {[%clk 0:02:16.9]} 15. Rfd1 {[%clk 0:02:44.2]} 15... e5
{[%clk 0:02:04.6]} 16. a4 {[%clk 0:02:27.8]} 16... Na6 {[%clk 0:01:59.8]} 17.
Nd2 {[%clk 0:02:22.1]} 17... Nb4 {[%clk 0:01:59.9]} 18. a5 {[%clk 0:02:12]}
18... f6 {[%clk 0:01:53.2]} 19. Bb5 {[%clk 0:02:00.6]} 19... a6 {[%clk
0:01:42.1]} 20. Bc6 {[%clk 0:01:33.6]} 20... Bxc6 {[%clk 0:01:11.4]} 21. Nc4
{[%clk 0:01:33.5]} 21... Bxd5 {[%clk 0:01:09.1]} 22. exd5 {[%clk 0:01:23.1]}
22... Qe7 {[%clk 0:01:10.4]} 23. axb6 {[%clk 0:01:09.1]} 23... Rfd8 {[%clk
0:01:03.9]} 24. Ne3 {[%clk 0:00:52.9]} 24... Rab8 {[%clk 0:01:02.8]} 25. Nc4
{[%clk 0:00:41.6]} 25... Qf7 {[%clk 0:01:03.8]} 26. Ra5 {[%clk 0:00:39.2]} 26...
Rxd5 {[%clk 0:01:02.1]} 27. Rc1 {[%clk 0:00:31.7]} 27... Nc6 {[%clk 0:00:55]}
28. Rxa6 {[%clk 0:00:30.4]} 28... Nd4 {[%clk 0:00:54]} 29. Qb2 {[%clk
0:00:31.3]} 29... Rd7 {[%clk 0:00:50]} 30. Ne3 {[%clk 0:00:28.1]} 30... Qe6
{[%clk 0:00:48.4]} 31. Rxc5 {[%clk 0:00:27.4]} 31... Qd6 {[%clk 0:00:44.9]} 32.
Rd5 {[%clk 0:00:22.7]} 32... Qxd5 {[%clk 0:00:38.3]} 33. Nxd5 {[%clk 0:00:23.2]}
33... Rxd5 {[%clk 0:00:40.2]} 34. Kh2 {[%clk 0:00:21.3]} 34... g5 {[%clk
0:00:32.9]} 35. Qc3 {[%clk 0:00:18.6]} 35... Kg6 {[%clk 0:00:30.3]} 36. Qc7
{[%clk 0:00:17.9]} 36... Rdd8 {[%clk 0:00:22.9]} 37. Ra7 {[%clk 0:00:18.9]}
37... Kf5 {[%clk 0:00:20.4]} 38. Qxh7+ {[%clk 0:00:16.6]} 38... Ke6 {[%clk
0:00:21.7]} 39. Qf7+ {[%clk 0:00:14.8]} 39... Kf5 {[%clk 0:00:21.9]} 40. b7
{[%clk 0:00:15.9]} 40... Rd6 {[%clk 0:00:14.2]} 41. Ra8 {[%clk 0:00:16.3]} 41...
Rdd8 {[%clk 0:00:13]} 42. Rxb8 {[%clk 0:00:17.5]} 42... Rxb8 {[%clk 0:00:14.9]}
43. Qc7 {[%clk 0:00:18.8]} 1-0